bitfinex/quotes_BTCUSD_20240826
["timestamp","ask_amount","ask_price","bid_price","bid_amount"]
[1724687946530,0.157112,63649.0,63646.0,0.0009075]
[1724687946736,0.15617801,63648.0,63646.0,0.0009075]
[1724687947842,0.22662723,63648.0,63646.0,0.0009075]
[1724687948050,0.23162723,63648.0,63646.0,0.0009075]
[1724687948461,0.04699315,63647.0,63646.0,0.0009075]
[1724687948589,0.20317116,63647.0,63646.0,0.0009075]
[1724687948996,0.15617801,63647.0,63646.0,0.1580265]
[1724687949351,0.15617801,63647.0,63646.0,0.7865025]
[1724687949960,0.01,63648.0,63647.0,0.785582]
[1724687950199,0.01,63648.0,63647.0,1.263915]
[1724687950815,0.04698577,63658.0,63656.0,0.157093]
[1724687951028,0.15617801,63657.0,63656.0,0.157093]
[1724687951632,0.15617801,63657.0,63655.0,0.157095]
[1724687951843,0.15617801,63657.0,63656.0,0.157094]
[1724687952441,0.20316378,63657.0,63655.0,0.857095]
[1724687952659,0.15617801,63657.0,63656.0,0.157094]
[1724687952864,0.16817801,63657.0,63656.0,0.157094]
[1724687953206,0.16817801,63657.0,63655.0,0.7]
[1724687953409,0.21516378,63657.0,63655.0,0.7]
[1724687953594,0.34557201,63656.0,63655.0,0.7]
[1724687954045,0.65976001,63656.0,63655.0,0.7]
[1724687954214,0.73020961,63656.0,63655.0,0.7]
[1724687954417,1.32240725,63656.0,63655.0,0.7]
[1724687954594,1.10217019,63656.0,63655.0,0.7]
[1724687954794,0.26592391,63656.0,63655.0,0.7]
[1724687955305,0.42301791,63656.0,63655.0,0.7]
[1724687955827,0.43001791,63656.0,63655.0,0.7]
[1724687956034,0.27292391,63656.0,63655.0,0.7]
[1724687956435,0.24062391,63656.0,63655.0,0.7]
[1724687956655,0.17017801,63656.0,63655.0,1.171289]
[1724687957095,0.17017801,63656.0,63655.0,0.857096]
[1724687957401,0.17017801,63656.0,63646.0,0.0009075]
[1724687957402,0.953182,63647.0,63646.0,0.0009075]
[1724687957522,0.54967059,63647.0,63646.0,0.0009075]
[1724687957730,1.73683406,63647.0,63646.0,0.0009075]
[1724687957930,1.75983406,63647.0,63646.0,0.0009075]
[1724687958137,1.41129301,63647.0,63646.0,0.0009075]
[1724687958342,1.09706001,63647.0,63646.0,0.0009075]
[1724687958551,1.16747264,63647.0,63646.0,0.0009075]
[1724687958921,0.79382701,63647.0,63646.0,0.0009075]
[1724687959125,1.10806001,63647.0,63646.0,0.0009075]
[1724687959530,1.16498521,63647.0,63646.0,0.0009075]
[1724687959760,1.11806001,63647.0,63646.0,0.0009075]
[1724687960837,1.43229301,63647.0,63646.0,0.0009075]
[1724687962301,1.44599301,63647.0,63646.0,0.0009075]
[1724687962508,1.49288854,63647.0,63646.0,0.0009075]
[1724687962760,1.49288679,63647.0,63646.0,0.0009075]
[1724687962960,2.01159301,63647.0,63646.0,0.0009075]
[1724687963367,2.05847923,63647.0,63646.0,0.0009075]
[1724687963571,2.16772469,63647.0,63646.0,0.0009075]
[1724687963778,2.2270609,63647.0,63646.0,0.0009075]
[1724687963992,2.23106161,63647.0,63646.0,0.0009075]
[1724687964195,1.45299301,63647.0,63646.0,0.0009075]
[1724687964808,1.48587143,63647.0,63646.0,0.0009075]
[1724687965023,1.45299301,63647.0,63646.0,0.0009075]
[1724687965233,1.49987143,63647.0,63646.0,0.0009075]
[1724687965429,1.13876001,63647.0,63646.0,0.0009075]
[1724687965638,0.28617801,63647.0,63646.0,0.0009075]
[1724687966061,0.60041101,63647.0,63646.0,0.0009075]
[1724687966266,0.44329401,63647.0,63646.0,0.0009075]
[1724687966884,1.07176001,63647.0,63646.0,0.0009075]
[1724687967105,1.09476001,63647.0,63646.0,0.0009075]
[1724687968569,1.40899301,63647.0,63646.0,0.0009075]
[1724687969196,1.09476001,63647.0,63646.0,0.0009075]
[1724687970475,0.78052701,63647.0,63646.0,0.0009075]
[1724687970678,0.46629401,63647.0,63646.0,0.0009075]
[1724687970894,0.28617801,63647.0,63646.0,0.0009075]
[1724687971534,0.28417801,63647.0,63646.0,0.0009075]
[1724687972158,0.28517801,63647.0,63646.0,0.0009075]
[1724687972368,0.28417801,63647.0,63646.0,0.0009075]
[1724687972586,0.18417801,63647.0,63646.0,0.7865025]
[1724687972791,0.18417801,63647.0,63646.0,0.8627025]
[1724687973060,0.028,63647.0,63646.0,1.2710405]
[1724687973310,0.028,63647.0,63646.0,1.5852785]
[1724687973741,0.028,63647.0,63646.0,1.2710405]
[1724687973974,0.000825,63656.0,63655.0,0.247296]
[1724687974242,0.15700301,63656.0,63655.0,0.561489]
[1724687975384,0.16400301,63656.0,63655.0,0.561489]
[1724687976434,0.17100301,63656.0,63655.0,0.561489]
[1724687976884,0.17100301,63656.0,63655.0,0.247296]
[1724687977110,0.002,63652.0,63649.0,0.0902]
[1724687977336,0.15617801,63651.0,63649.0,0.0902]
[1724687978983,0.15817801,63651.0,63649.0,0.0902]
[1724687979215,0.16017801,63651.0,63649.0,0.0902]
[1724687980228,0.16017801,63651.0,63650.0,0.157109]
[1724687980419,0.16017801,63651.0,63649.0,0.0902]
[1724687980628,0.16017801,63651.0,63649.0,0.247309]
[1724687980754,0.16017801,63651.0,63650.0,0.785545]
[1724687980960,0.16017801,63651.0,63650.0,0.951845]
[1724687981336,0.15817801,63651.0,63650.0,1.266063]
[1724687981522,0.16017801,63651.0,63650.0,1.266063]
[1724687981987,0.15817801,63651.0,63650.0,1.266063]
[1724687982196,0.16017801,63651.0,63650.0,1.266063]
[1724687995558,0.16017801,63651.0,63650.0,1.2669705]
[1724687996731,0.16017801,63651.0,63650.0,0.0009075]
[1724687997192,0.16217801,63651.0,63650.0,0.0009075]
[1724687997403,0.31928401,63651.0,63650.0,0.0009075]
[1724687998019,0.16217801,63651.0,63650.0,0.0009075]
[1724687999162,0.31928401,63651.0,63650.0,0.0009075]
[1724687999832,0.63349701,63651.0,63650.0,0.0009075]
[1724688001052,1.08866332,63651.0,63650.0,0.0009075]
[1724688001266,0.75649701,63651.0,63650.0,0.0009075]
[1724688001479,1.11872198,63651.0,63650.0,0.0009075]
[1724688002335,2.06136098,63651.0,63650.0,0.0009075]
[1724688002539,2.10876098,63651.0,63650.0,0.0009075]
[1724688004272,2.42097398,63651.0,63650.0,0.0009075]
[1724688004559,2.58710566,63651.0,63650.0,0.0009075]
[1724688004774,2.75170566,63651.0,63650.0,0.0009075]
[1724688004942,2.76570566,63651.0,63650.0,0.0009075]
[1724688005656,3.07991866,63651.0,63650.0,0.0009075]
[1724688006247,3.06891866,63651.0,63650.0,0.0009075]
[1724688006454,3.10406109,63651.0,63650.0,0.0009075]
[1724688006882,2.05064246,63647.0,63646.0,0.0009075]
[1724688007060,2.52109458,63647.0,63646.0,0.0009075]
[1724688007313,2.65155215,63647.0,63646.0,0.0009075]
[1724688007511,2.68669872,63647.0,63646.0,0.0009075]
[1724688007660,2.65155215,63647.0,63646.0,0.0009075]
[1724688007858,2.66435215,63647.0,63646.0,0.0009075]
[1724688008339,2.67835215,63647.0,63646.0,0.0009075]
[1724688009153,2.59851915,63647.0,63646.0,0.0009075]
[1724688010359,2.61251915,63647.0,63646.0,0.0009075]
[1724688010803,2.63714054,63647.0,63646.0,0.0009075]
[1724688011005,2.95137354,63647.0,63646.0,0.0009075]
[1724688011206,3.11697354,63647.0,63646.0,0.0009075]
[1724688011615,3.11697354,63647.0,63622.0,0.0906]
[1724688011616,1.476356,63642.0,63622.0,0.0906]
[1724688011818,2.26031232,63642.0,63622.0,0.0906]
[1724688012024,2.57456932,63642.0,63622.0,0.0906]
[1724688012238,2.5991881,63642.0,63622.0,0.0906]
[1724688013509,2.2849311,63642.0,63622.0,0.0906]
[1724688013713,2.2989311,63642.0,63622.0,0.0906]
[1724688014129,2.41609841,63642.0,63622.0,0.0906]
[1724688014334,2.46449586,63642.0,63622.0,0.0906]
[1724688014547,2.47849586,63642.0,63622.0,0.0906]
[1724688014931,2.57220922,63642.0,63622.0,0.0906]
[1724688015706,2.47850844,63642.0,63622.0,0.0906]
[1724688016335,2.47850937,63642.0,63622.0,0.0906]
[1724688016540,2.12988447,63642.0,63622.0,0.0906]
[1724688016763,2.5722275,63642.0,63622.0,0.0906]
[1724688017203,2.2001417,63642.0,63622.0,0.0906]
[1724688017407,2.20013575,63642.0,63622.0,0.0906]
[1724688018269,2.45389079,63642.0,63622.0,0.0906]
[1724688019537,2.10526569,63642.0,63622.0,0.0906]
[1724688019754,2.10486518,63642.0,63622.0,0.0906]
[1724688020168,2.15168262,63642.0,63622.0,0.0906]
[1724688020392,1.7703335,63642.0,63633.0,0.1743]
[1724688021649,0.40159949,63636.0,63617.0,0.1624]
[1724688021857,2.58102996,63636.0,63617.0,0.1624]
[1724688022067,2.73716164,63636.0,63617.0,0.1624]
[1724688022886,2.78396997,63636.0,63617.0,0.1624]
[1724688023092,2.73716164,63636.0,63627.0,0.099064]
[1724688023496,2.57156164,63636.0,63627.0,0.099064]
[1724688023701,2.58556164,63636.0,63627.0,0.099064]
[1724688024311,2.78396997,63636.0,63627.0,0.099064]
[1724688024514,2.79796997,63636.0,63627.0,0.099064]
[1724688024689,2.81196997,63636.0,63627.0,0.099064]
[1724688024891,2.79796997,63636.0,63627.0,0.099064]
[1724688025104,2.75116164,63636.0,63627.0,0.099064]
[1724688025274,2.76516164,63636.0,63627.0,0.099064]
[1724688025480,2.75116164,63636.0,63627.0,0.099064]
[1724688025866,2.76516164,63636.0,63627.0,0.099064]
[1724688026300,2.75116164,63636.0,63627.0,0.099064]
[1724688026507,2.35116164,63636.0,63627.0,0.099064]
[1724688026711,2.36516164,63636.0,63627.0,0.099064]
[1724688027317,2.35116164,63636.0,63627.0,0.099064]
[1724688027496,2.36516164,63636.0,63627.0,0.099064]
[1724688027707,2.52331696,63636.0,63627.0,0.009064]
[1724688029036,2.20902996,63636.0,63627.0,0.009064]
[1724688029214,2.20952996,63636.0,63627.0,0.009064]
[1724688029369,2.25632874,63636.0,63627.0,0.009064]
[1724688029576,2.20842874,63636.0,63627.0,0.009064]
[1724688030395,2.73994742,63636.0,63627.0,0.009064]
[1724688030695,2.76334322,63636.0,63627.0,0.009064]
[1724688030877,2.37886164,63636.0,63627.0,0.009064]
[1724688031262,2.76335724,63636.0,63627.0,0.009064]
[1724688031446,2.7633641,63636.0,63627.0,0.009064]
[1724688031654,2.69314864,63636.0,63627.0,0.009064]
[1724688032362,3.04182547,63636.0,63627.0,0.009064]
[1724688032776,3.13541824,63636.0,63627.0,0.009064]
[1724688032976,3.04182547,63636.0,63627.0,0.009064]
[1724688033179,3.07701321,63636.0,63627.0,0.009064]
[1724688034219,3.07703272,63636.0,63627.0,0.009064]
[1724688034429,3.19408883,63636.0,63627.0,0.009064]
[1724688035246,3.07703272,63636.0,63627.0,0.009064]
[1724688036421,1.58167049,63628.0,63627.0,0.009064]
[1724688036621,2.48250779,63628.0,63627.0,0.009064]
[1724688036875,2.99707634,63628.0,63627.0,0.009064]
[1724688037078,2.942943,63628.0,63627.0,0.009064]
[1724688037716,2.956943,63628.0,63627.0,0.009064]
[1724688037925,3.11446878,63628.0,63627.0,0.009064]
[1724688038348,3.24104431,63628.0,63627.0,0.009064]
[1724688038566,1.73023038,63627.0,63626.0,0.009064]
[1724688038772,2.55890143,63627.0,63626.0,0.009064]
[1724688038979,3.02936411,63627.0,63626.0,0.009064]
[1724688039390,3.53082058,63627.0,63626.0,0.009064]
[1724688040244,2.5442269,63627.0,63626.0,0.087164]
[1724688040449,2.06997043,63627.0,63626.0,0.087164]
[1724688040667,2.06997043,63627.0,63626.0,0.182864]
[1724688040871,2.08398044,63627.0,63626.0,0.182864]
[1724688041897,2.10698044,63627.0,63626.0,0.182864]
[1724688042353,2.07178523,63627.0,63626.0,0.182864]
[1724688044294,2.21252945,63627.0,63626.0,0.182864]
[1724688045241,2.55996969,63627.0,63626.0,0.182864]
[1724688045636,2.5599566,63627.0,63626.0,0.182864]
[1724688045915,2.07178523,63627.0,63626.0,0.182864]
[1724688046103,2.21289024,63627.0,63626.0,0.182864]
[1724688046457,2.559962,63627.0,63626.0,0.182864]
[1724688046660,2.21289028,63627.0,63626.0,0.182864]
[1724688047049,2.70106438,63627.0,63626.0,0.182864]
[1724688047291,2.55995933,63627.0,63626.0,0.182864]
[1724688047901,2.55914844,63627.0,63626.0,0.182864]
[1724688048075,2.38596041,63627.0,63626.0,0.182864]
[1724688048293,1.00579223,63627.0,63626.0,0.182864]
[1724688048539,1.00519274,63627.0,63626.0,0.182864]
[1724688048716,0.69086174,63627.0,63626.0,0.182864]
[1724688048916,1.09989647,63627.0,63626.0,0.182864]
[1724688049120,0.99038185,63627.0,63626.0,0.182864]
[1724688049283,0.77015536,63627.0,63626.0,0.182864]
[1724688049481,0.67605085,63627.0,63626.0,0.182864]
[1724688049704,0.99038185,63627.0,63626.0,0.182864]
[1724688049944,1.40471285,63627.0,63626.0,0.182864]
[1724688050179,1.07000501,63627.0,63626.0,0.182864]
[1724688050340,1.50829311,63627.0,63626.0,0.182864]
[1724688050724,1.52229311,63627.0,63626.0,0.182864]
[1724688051316,1.40523712,63627.0,63626.0,0.182864]
[1724688051746,1.41923712,63627.0,63626.0,0.182864]
[1724688051988,1.73437901,63627.0,63626.0,0.182864]
[1724688052197,2.07171001,63627.0,63626.0,0.182864]
[1724688052387,2.55986211,63627.0,63626.0,0.182864]
[1724688053006,2.70109056,63627.0,63626.0,0.182864]
[1724688053216,2.21293846,63627.0,63626.0,0.182864]
[1724688053386,2.70107585,63627.0,63626.0,0.182864]
[1724688053620,2.70107684,63627.0,63626.0,0.182864]
[1724688053827,2.55984664,63627.0,63626.0,0.182864]
[1724688055004,2.55988505,63627.0,63626.0,0.182864]
[1724688057037,2.56071005,63627.0,63626.0,0.182864]
[1724688057441,2.59589969,63627.0,63626.0,0.182864]
[1724688057817,2.56071005,63627.0,63626.0,0.182864]
[1724688058618,2.59589936,63627.0,63626.0,0.182864]
[1724688058849,2.56071005,63627.0,63626.0,0.182864]
[1724688059399,2.59589881,63627.0,63626.0,0.182864]
[1724688059827,2.5959334,63627.0,63626.0,0.182864]
[1724688061001,2.59574424,63627.0,63626.0,0.182864]
[1724688062092,2.59574424,63627.0,63626.0,0.009064]
[1724688063234,2.59793928,63627.0,63626.0,0.009064]
[1724688063440,2.59775017,63627.0,63626.0,0.009064]
[1724688063645,2.59793928,63627.0,63626.0,0.009064]
[1724688064028,2.59793928,63627.0,63626.0,0.178864]
[1724688064230,2.56275052,63627.0,63626.0,0.178864]
[1724688064440,2.59794432,63627.0,63626.0,0.178864]
[1724688066247,2.59775521,63627.0,63626.0,0.178864]
[1724688066483,2.59794432,63627.0,63626.0,0.178864]
[1724688066687,2.59775521,63627.0,63626.0,0.178864]
[1724688067497,2.59575521,63627.0,63626.0,0.178864]
[1724688067723,2.59575521,63627.0,63626.0,0.085564]
[1724688067934,3.06912129,63627.0,63626.0,0.009064]
[1724688068182,1.10167338,63621.0,63620.0,0.08]
[1724688068393,2.0791021,63621.0,63620.0,0.08]
[1724688068602,2.56727637,63621.0,63620.0,0.08]
[1724688070681,2.56727637,63621.0,63620.0,0.0809075]
[1724688070928,2.58127637,63621.0,63620.0,0.0809075]
[1724688071412,2.59527637,63621.0,63620.0,0.0809075]
[1724688072678,2.59450764,63621.0,63620.0,0.0809075]
[1724688073304,1.41614738,63616.0,63615.0,0.009075]
[1724688073510,2.8395821,63616.0,63615.0,0.009075]
[1724688073720,2.8395821,63616.0,63615.0,0.103475]
[1724688073911,2.53142684,63616.0,63615.0,0.180475]
[1724688074111,2.21704084,63616.0,63615.0,0.180475]
[1724688074535,2.35839392,63616.0,63615.0,0.180475]
[1724688074745,1.88503081,63616.0,63615.0,0.180475]
[1724688074951,1.89903081,63616.0,63615.0,0.180475]
[1724688075159,2.38655408,63616.0,63615.0,0.180475]
[1724688075368,1.89903081,63616.0,63615.0,0.180475]
[1724688075745,2.38633716,63616.0,63615.0,0.180475]
[1724688075985,1.89903081,63616.0,63615.0,0.180475]
[1724688076415,2.03063919,63616.0,63615.0,0.180475]
[1724688076634,2.51803373,63616.0,63615.0,0.180475]
[1724688076838,2.83241973,63616.0,63615.0,0.180475]
[1724688077480,2.51803373,63616.0,63615.0,0.180475]
[1724688079782,2.24507227,63616.0,63615.0,0.180475]
[1724688079998,1.89900194,63616.0,63615.0,0.180475]
[1724688080641,1.89900102,63616.0,63615.0,0.180475]
[1724688081494,2.24435686,63616.0,63615.0,0.180475]
[1724688081692,2.38567745,63616.0,63615.0,0.180475]
[1724688082099,2.38530796,63616.0,63615.0,0.180475]
[1724688082671,2.40993705,63616.0,63615.0,0.180475]
[1724688083280,2.26861646,63616.0,63615.0,0.180475]
[1724688083927,2.54157792,63616.0,63615.0,0.180475]
[1724688084255,2.89117374,63616.0,63615.0,0.086075]
[1724688084463,1.10181338,63613.0,63612.0,0.0963]
[1724688084670,2.04412136,63613.0,63612.0,0.0963]
[1724688084876,2.6659562,63613.0,63612.0,0.0963]
[1724688085082,2.52352406,63613.0,63612.0,0.0963]
[1724688085490,1.41623738,63612.0,63611.0,0.009464]
[1724688085696,2.2100506,63612.0,63611.0,0.009464]
[1724688085906,2.55877957,63612.0,63611.0,0.009464]
[1724688087102,2.57277957,63612.0,63611.0,0.009464]
[1724688087725,2.5927475,63612.0,63611.0,0.009464]
[1724688088157,2.6067475,63612.0,63611.0,0.009464]
[1724688088306,2.57151499,63612.0,63611.0,0.009464]
[1724688088712,2.58678431,63612.0,63611.0,0.009464]
[1724688088920,2.07214436,63612.0,63611.0,0.009464]
[1724688089735,2.13516636,63612.0,63611.0,0.103964]
[1724688092968,2.13516636,63612.0,63611.0,0.182664]
[1724688093746,2.13516636,63612.0,63611.0,0.103964]
[1724688094351,2.60350353,63612.0,63611.0,0.103964]
[1724688094549,2.63872591,63612.0,63611.0,0.103964]
[1724688097213,3.10926359,63612.0,63611.0,0.009464]
[1724688098621,1.10198538,63603.0,63602.0,0.1723]
[1724688098909,2.02134236,63603.0,63602.0,0.0961]
[1724688099168,2.62642147,63603.0,63602.0,0.0961]
[1724688099342,2.1855758,63603.0,63602.0,0.0961]
[1724688099564,2.50393149,63603.0,63602.0,0.0961]
[1724688099720,2.5391896,63603.0,63602.0,0.0961]
[1724688099920,2.64514977,63603.0,63602.0,0.0961]
[1724688100326,2.18556064,63603.0,63602.0,0.0961]
[1724688100525,2.56505522,63603.0,63602.0,0.0961]
[1724688100853,2.56505522,63603.0,63600.0,0.5]
[1724688100854,1.41648038,63601.0,63600.0,0.5]
[1724688101051,2.35260909,63601.0,63600.0,0.5]
[1724688101266,2.80908818,63601.0,63600.0,0.5]
[1724688102344,2.82108818,63601.0,63600.0,0.5]
[1724688103021,3.14854818,63601.0,63600.0,0.5]
[1724688103903,3.13554818,63601.0,63600.0,0.5]
[1724688104116,3.13754818,63601.0,63600.0,0.5]
[1724688104286,3.15154818,63601.0,63600.0,0.5]
[1724688105308,3.62213986,63601.0,63600.0,0.5]
[1724688105683,3.78100603,63601.0,63600.0,0.5]
[1724688106086,3.61801636,63601.0,63600.0,0.5]
[1724688106450,3.59001636,63601.0,63600.0,0.5]
[1724688106706,3.60401636,63601.0,63600.0,0.5]
[1724688106908,3.46188468,63601.0,63600.0,0.5]
[1724688107134,3.46188468,63601.0,63600.0,0.500825]
[1724688107507,3.48651864,63601.0,63600.0,0.500825]
[1724688108323,3.46188468,63601.0,63600.0,0.500825]
[1724688108520,3.62064984,63601.0,63600.0,0.500825]
[1724688108724,3.61801636,63601.0,63600.0,0.500825]
[1724688108923,3.77678152,63601.0,63600.0,0.500825]
[1724688109157,3.61801636,63601.0,63600.0,0.500825]
[1724688109352,3.78361636,63601.0,63600.0,0.500825]
[1724688111799,1.73107738,63596.0,63595.0,0.009075]
[1724688112040,2.51527747,63596.0,63595.0,0.009075]
[1724688113236,2.54327747,63596.0,63595.0,0.009075]
[1724688113438,2.55275247,63596.0,63595.0,0.009075]
[1724688113640,2.53875247,63596.0,63595.0,0.009075]
[1724688114030,2.55275247,63596.0,63595.0,0.009075]
[1724688114801,2.86723747,63596.0,63595.0,0.009075]
[1724688115156,1.73118238,63592.0,63588.0,0.1017]
[1724688115374,2.94671625,63592.0,63588.0,0.1017]
[1724688115539,2.94677163,63592.0,63588.0,0.1017]
[1724688116596,2.94677163,63592.0,63586.0,0.009075]
[1724688116597,2.96077163,63592.0,63586.0,0.009075]
[1724688117018,2.94677163,63592.0,63586.0,0.009075]
[1724688117235,3.11690331,63592.0,63586.0,0.009075]
[1724688117440,3.13090331,63592.0,63586.0,0.009075]
[1724688117642,3.11690331,63592.0,63586.0,0.009075]
[1724688118020,2.04584838,63587.0,63586.0,0.009075]
[1724688118376,2.67397217,63587.0,63586.0,0.009075]
[1724688118582,2.35944317,63587.0,63586.0,0.009075]
[1724688119738,2.38744317,63587.0,63586.0,0.009075]
[1724688120339,2.38744915,63587.0,63586.0,0.009075]
[1724688120537,2.07292015,63587.0,63586.0,0.110175]
[1724688120740,2.07292015,63587.0,63586.0,0.190575]
[1724688121376,1.72396839,63587.0,63586.0,0.190575]
[1724688121579,1.79442464,63587.0,63586.0,0.190575]
[1724688121785,1.72396839,63587.0,63586.0,0.190575]
[1724688121980,1.79442464,63587.0,63586.0,0.190575]
[1724688122381,1.70996839,63587.0,63586.0,0.190575]
[1724688122594,1.69596839,63587.0,63586.0,0.190575]
[1724688122803,1.76642784,63587.0,63586.0,0.190575]
[1724688123130,1.72396839,63587.0,63586.0,0.190575]
[1724688123351,2.07286689,63587.0,63586.0,0.190575]
[1724688123529,2.05886689,63587.0,63586.0,0.190575]
[1724688123734,2.43976637,63587.0,63586.0,0.190575]
[1724688123972,2.66035735,63587.0,63586.0,0.190575]
[1724688124634,2.34582835,63587.0,63586.0,0.190575]
[1724688125190,2.46327456,63587.0,63586.0,0.190575]
[1724688125591,2.46308535,63587.0,63586.0,0.190575]
[1724688125775,2.34563914,63587.0,63586.0,0.190575]
[1724688128405,2.34567509,63587.0,63586.0,0.190575]
[1724688128711,2.07271363,63587.0,63586.0,0.190575]
[1724688129386,2.04971363,63587.0,63586.0,0.190575]
[1724688130523,1.73518463,63587.0,63586.0,0.190575]
[1724688130729,1.75818463,63587.0,63586.0,0.190575]
[1724688131122,1.42024535,63587.0,63586.0,0.2096325]
[1724688131323,0.18417801,63587.0,63586.0,0.190575]
[1724688131594,0.18417801,63587.0,63586.0,0.662376]
[1724688131820,0.10207801,63587.0,63586.0,0.97691]
[1724688132035,0.00090751,63591.0,63590.0,0.15784672]
[1724688132255,0.00090751,63591.0,63590.0,0.65276072]
[1724688132462,0.00090751,63591.0,63590.0,0.1804]
[1724688132463,0.15708552,63591.0,63590.0,0.1804]
[1724688133101,0.15708552,63591.0,63590.0,0.96727472]
[1724688133102,0.00090751,63591.0,63590.0,0.96727472]
[1724688133565,0.01490751,63591.0,63590.0,0.96727472]
[1724688133766,0.314433,63607.0,63596.0,0.1003]
[1724688133968,0.314447,63604.0,63598.0,0.1003]
[1724688134175,0.157228,63602.0,63600.0,0.1003]
[1724688134383,0.15617801,63601.0,63600.0,0.1003]
[1724688134799,0.00090751,63610.0,63601.0,0.1005]
[1724688135000,0.31338901,63609.0,63604.0,0.0801]
[1724688135206,0.31338901,63609.0,63606.0,0.0801]
[1724688135414,0.31339001,63609.0,63607.0,0.1005]
[1724688135616,0.15617801,63609.0,63608.0,0.1806]
[1724688136250,0.15617801,63609.0,63608.0,0.331512]
[1724688136463,0.00090751,63610.0,63609.0,0.15721]
[1724688136672,0.00090751,63610.0,63609.0,0.91948118]
[1724688136877,0.00090751,63610.0,63609.0,1.54832118]
[1724688137113,0.00090751,63610.0,63609.0,1.27535972]
[1724688137442,0.00090751,63610.0,63609.0,0.96093972]
[1724688138370,0.00090751,63610.0,63609.0,0.96193972]
[1724688139599,0.00090751,63610.0,63609.0,0.96093972]
[1724688141063,0.00090751,63610.0,63609.0,0.17488972]
[1724688141268,0.00090751,63610.0,63609.0,0.64651972]
[1724688141476,0.00090751,63610.0,63609.0,0.33209972]
[1724688142474,0.00090751,63610.0,63609.0,0.17488972]
[1724688142674,0.00090751,63610.0,63609.0,0.33209972]
[1724688143107,0.00090751,63610.0,63609.0,0.64651972]
[1724688144210,0.00090751,63610.0,63609.0,0.33151]
[1724688144348,0.00090751,63610.0,63609.0,0.33209972]
[1724688144956,0.00090751,63610.0,63609.0,0.64651972]
[1724688145921,0.15708552,63610.0,63609.0,0.1743]
[1724688146095,0.94312252,63610.0,63609.0,0.1743]
[1724688146299,0.94312252,63610.0,63599.0,0.00058972]
[1724688146300,0.15722,63605.0,63604.0,0.0841]
[1724688146501,0.94227801,63605.0,63604.0,0.0841]
[1724688146708,0.94227801,63605.0,63604.0,0.09256897]
[1724688146906,0.94227801,63605.0,63604.0,0.19506897]
[1724688147528,0.94927801,63605.0,63604.0,0.19606897]
[1724688147688,0.63483801,63605.0,63604.0,0.19606897]
[1724688147890,0.94227801,63605.0,63604.0,0.19506897]
[1724688148341,0.63583801,63605.0,63604.0,0.19606897]
[1724688148773,0.62783801,63605.0,63604.0,0.19506897]
[1724688149001,0.15617801,63605.0,63604.0,0.19506897]
[1724688149213,0.17117801,63605.0,63604.0,0.19706897]
[1724688149647,0.015,63605.0,63604.0,0.19706897]
[1724688150588,0.015,63605.0,63604.0,0.66932569]
[1724688150865,0.008,63605.0,63604.0,0.98277069]
[1724688151049,0.015,63605.0,63604.0,0.98377069]
[1724688151313,0.007,63605.0,63604.0,0.98277069]
[1724688151576,0.014,63605.0,63604.0,0.98377069]
[1724688152053,0.007,63605.0,63604.0,0.98277069]
[1724688152268,0.007,63605.0,63604.0,0.66832569]
[1724688152486,0.007,63605.0,63604.0,0.66932569]
[1724688152691,0.014,63605.0,63604.0,0.66932569]
[1724688156896,0.014,63605.0,63604.0,0.1886]
[1724688157104,0.64183801,63605.0,63604.0,0.1886]
[1724688157334,0.95627801,63605.0,63604.0,0.1886]
[1724688157541,0.64183801,63605.0,63604.0,0.1886]
[1724688157753,0.95627801,63605.0,63604.0,0.1886]
[1724688157960,0.95627801,63605.0,63604.0,0.20751897]
[1724688157961,0.64183801,63605.0,63604.0,0.20751897]
[1724688158521,0.17017801,63605.0,63604.0,0.20751897]
[1724688158748,0.32739801,63605.0,63604.0,0.20751897]
[1724688158945,0.17017801,63605.0,63604.0,0.20751897]
[1724688159152,0.32739801,63605.0,63604.0,0.20751897]
[1724688159351,0.64183801,63605.0,63604.0,0.20751897]
[1724688159952,0.32739801,63605.0,63604.0,0.20751897]
[1724688160240,0.64183801,63605.0,63604.0,0.20751897]
[1724688160640,0.64183801,63605.0,63604.0,0.20810869]
[1724688160641,0.014,63605.0,63604.0,0.20810869]
[1724688162474,0.014,63605.0,63604.0,0.20751897]
[1724688162475,0.32739801,63605.0,63604.0,0.20751897]
[1724688162881,0.95627801,63605.0,63604.0,0.1886]
[1724688163832,1.68665801,63605.0,63604.0,0.002]
[1724688164041,1.45341801,63605.0,63604.0,0.002]
[1724688164254,1.72637947,63605.0,63604.0,0.002]
[1724688164676,1.74978975,63605.0,63604.0,0.002]
[1724688164900,2.16422975,63605.0,63604.0,0.002]
[1724688165108,1.185464,63592.0,63591.0,0.000825]
[1724688165317,1.34164201,63592.0,63591.0,0.000825]
[1724688166175,1.25694201,63592.0,63591.0,0.000825]
[1724688166579,1.25694201,63592.0,63591.0,0.011795]
[1724688166983,1.26494201,63592.0,63591.0,0.012795]
[1724688167605,1.27294201,63592.0,63591.0,0.013795]
[1724688168225,1.27294201,63592.0,63591.0,0.002825]
[1724688168840,0.95843801,63592.0,63591.0,0.002825]
[1724688169265,1.90446718,63592.0,63591.0,0.002825]
[1724688169680,2.2533708,63592.0,63591.0,0.002825]
[1724688169913,2.34713818,63592.0,63591.0,0.002825]
[1724688170541,2.66164218,63592.0,63591.0,0.002825]
[1724688170746,2.72401172,63592.0,63591.0,0.002825]
[1724688171171,2.56788004,63592.0,63591.0,0.002825]
[1724688171406,2.55988004,63592.0,63591.0,0.001825]
[1724688171614,2.57388004,63592.0,63591.0,0.001825]
[1724688172232,2.55988004,63592.0,63591.0,0.001825]
[1724688172653,2.55188004,63592.0,63591.0,0.000825]
[1724688173061,2.56588004,63592.0,63591.0,0.000825]
[1724688174393,2.57988004,63592.0,63591.0,0.000825]
[1724688174604,2.92881983,63592.0,63591.0,0.000825]
[1724688174799,2.26540697,63592.0,63591.0,0.000825]
[1724688175062,1.41660117,63587.0,63586.0,0.009075]
[1724688175266,1.69577918,63587.0,63586.0,0.009075]
[1724688176243,1.76610008,63587.0,63586.0,0.009075]
[1724688176458,1.78010008,63587.0,63586.0,0.009075]
[1724688176665,1.79410008,63587.0,63586.0,0.009075]
[1724688178317,1.72377918,63587.0,63586.0,0.009075]
[1724688179363,1.77063607,63587.0,63586.0,0.009075]
[1724688180736,1.40925018,63587.0,63586.0,0.009075]
[1724688182341,1.72377918,63587.0,63586.0,0.009075]